bitfinex-derivatives/quotes_ETHF0:USTF0_20250520
["timestamp","ask_amount","ask_price","bid_price","bid_amount"]
[1747719080011,1.2625,2570.6,2570.5,2.74583658]
[1747719080207,2.04033,2570.6,2570.5,0.00583658]
[1747719081206,1.2625,2570.6,2570.5,0.00583658]
[1747719081408,1.2625,2570.6,2570.5,0.78369658]
[1747719081610,0.6423,2570.8,2570.7,0.7778]
[1747719081911,1.9048,2570.8,2570.7,0.7778]
[1747719082407,1.9048,2570.8,2570.6,2.79002]
[1747719082610,2.68259,2570.8,2570.6,2.79002]
[1747719082801,0.77783,2570.6,2570.5,0.00583658]
[1747719083001,3.98563,2570.6,2570.5,0.00583658]
[1747719083708,8.98563,2570.6,2570.5,0.00583658]
[1747719084614,8.98563,2570.6,2569.9,2.09563]
[1747719084615,0.778,2570.1,2569.9,2.09563]
[1747719084912,0.778,2570.1,2569.9,0.77803]
[1747719085207,2.75052,2570.0,2569.9,2.74]
[1747719085807,1.9725,2570.0,2569.9,2.74]
[1747719086201,1.9725,2570.0,2569.8,5.9478]
[1747719086401,0.77805,2569.9,2569.8,5.9478]
[1747719086608,2.08515,2569.9,2569.8,2.74]
[1747719087200,0.77808,2569.8,2569.6,0.77812]
[1747719087400,1.3071,2569.7,2569.6,0.77812]
[1747719088910,2.08523,2569.7,2569.5,2.74]
[1747719089110,2.71833,2569.7,2569.5,2.74]
[1747719089311,0.77814,2569.6,2569.5,2.74]
[1747719089510,2.15014,2569.6,2569.5,2.74]
[1747719089809,1.372,2569.6,2569.5,3.51817]
[1747719090113,3.8732,2570.0,2569.5,2.74]
[1747719090313,3.8732,2570.0,2569.9,0.77805]
[1747719090616,3.8732,2570.0,2569.5,4.0655]
[1747719090913,1.372,2569.9,2569.5,2.74]
[1747719091316,0.77813,2569.7,2569.5,2.74]
[1747719091509,1.303,2569.6,2569.5,2.74]
[1747719091709,2.08114,2569.6,2569.5,2.74]
[1747719093108,2.08114,2569.6,2569.4,4.6614]
[1747719093310,0.6763,2569.5,2569.4,4.6614]
[1747719093515,1.9793,2569.5,2569.4,4.6614]
[1747719094413,2.75747,2569.5,2569.4,3.2078]
[1747719095114,0.00583658,2569.7,2569.4,3.2078]
[1747719095313,2.10036658,2569.7,2569.5,1.44555]
[1747719095614,0.77817,2569.5,2569.4,3.2078]
[1747719096010,0.77826,2569.2,2569.0,0.77831]
[1747719096209,0.6763,2569.1,2568.9,1.2939]
[1747719096514,1.9927,2569.1,2568.8,3.2078]
[1747719096815,0.6458,2569.0,2568.8,3.2078]
[1747719097010,1.9622,2569.0,2568.9,0.77834]
[1747719097210,2.74052,2569.0,2568.8,6.72616]
[1747719097411,1.9622,2569.0,2568.8,5.9478]
[1747719097716,1.3164,2569.0,2568.9,0.77835]
[1747719098114,1.3164,2569.0,2568.9,3.51835]
[1747719098717,2.09472,2569.0,2568.9,2.74]
[1747719100420,0.7784,2568.8,2568.6,1.2939]
[1747719100613,1.45461,2569.1,2568.8,0.77838]
[1747719100814,2.05222,2569.0,2568.6,1.2939]
[1747719101015,2.05222,2569.0,2568.7,0.77841]
[1747719101215,1.2739,2569.0,2568.8,1.3593]
[1747719101410,3.2078,2569.4,2568.8,12.5741]
[1747719101621,3.2078,2569.4,2568.9,1.3444]
[1747719101923,0.77829,2569.1,2569.0,1.3593]
[1747719102122,0.77829,2569.1,2569.0,4.0993]
[1747719102317,0.77829,2569.1,2569.0,2.74]
[1747719102717,2.70829,2569.1,2569.0,2.74]
[1747719103118,2.70829,2569.1,2568.9,0.6824]
[1747719103119,0.77832,2569.0,2568.9,0.6824]
[1747719103425,2.03032,2569.0,2568.9,0.6824]
[1747719103927,0.77835,2568.9,2568.8,2.74]
[1747719104119,2.03035,2568.9,2568.8,2.74]
[1747719105627,7.03035,2568.9,2568.8,2.74]
[1747719105827,2.03035,2568.9,2568.8,2.74]
[1747719106230,2.03037,2568.9,2568.7,1.9702]
[1747719106526,2.03037,2568.9,2568.7,0.645]
[1747719106527,0.77838,2568.8,2568.7,0.645]
[1747719106721,2.73378,2568.8,2568.7,0.645]
[1747719107327,0.77841,2568.7,2568.6,2.74]
[1747719107530,2.05824587,2568.7,2568.6,2.74]
[1747719108027,8.008,2569.0,2568.6,2.74]
[1747719108221,1.2872,2568.9,2568.7,2.76509]
[1747719108421,1.2872,2568.9,2568.8,1.3417]
[1747719109027,0.77833,2569.0,2568.8,1.3417]
[1747719109328,0.77833,2569.0,2568.8,4.86006]
[1747719109826,0.77833,2569.0,2568.8,4.0817]
[1747719110023,1.2672,2569.2,2568.8,4.0817]
[1747719110224,0.77824,2569.3,2569.0,0.77831]
[1747719110527,4.4872,2569.4,2569.1,1.3544]
[1747719110826,0.77826,2569.2,2569.1,1.3544]
[1747719111428,0.77829,2569.1,2569.0,2.74]
[1747719112723,0.77827,2569.2,2569.0,2.74]
[1747719112923,0.77827,2569.2,2569.1,1.2844]
[1747719113220,0.77827,2569.2,2569.1,1.9303]
[1747719115433,0.77827,2569.2,2569.1,0.6459]
[1747719116435,3.8637,2569.4,2569.1,0.6459]
[1747719116629,0.77823,2569.3,2569.2,1.3003]
[1747719117029,3.8637,2569.4,2569.2,1.3003]
[1747719117228,0.77823,2569.3,2569.2,1.3003]
[1747719117430,8.064,2569.3,2568.6,3.2078]
[1747719117732,1.9358,2569.2,2568.9,0.77834]
[1747719117925,0.77829,2569.1,2569.0,1.9352]
[1747719118126,0.77829,2569.1,2569.0,4.6752]
[1747719118429,2.08439,2569.1,2569.0,4.6752]
[1747719118629,0.77827,2569.2,2569.0,4.6752]
[1747719118934,5.25044,2569.3,2569.0,5.4535]
[1747719119131,0.77827,2569.2,2569.0,4.6752]
[1747719119636,5.25045,2569.3,2569.0,5.45351]
[1747719119836,1.2644,2569.2,2569.0,5.45351]
[1747719120131,3.2078,2569.3,2569.1,0.77829]
[1747719120432,1.2644,2569.5,2569.2,1.2968]
[1747719120637,3.2078,2569.6,2569.5,0.77817]
[1747719121030,3.2078,2569.6,2569.4,2.76098]
[1747719121333,3.2078,2569.6,2569.4,5.50098]
[1747719121739,0.00583658,2569.7,2569.4,4.7228]
[1747719122038,0.00583658,2569.7,2569.5,0.77817]
[1747719122236,0.00583658,2569.7,2569.6,1.291]
[1747719122436,1.35013658,2569.7,2569.6,1.291]
[1747719125036,3.2078,2570.2,2570.1,0.77799]
[1747719125239,2.5665,2570.6,2570.5,0.77786]
[1747719125537,3.34435,2570.6,2570.3,0.77791]
[1747719125731,2.5665,2570.6,2570.2,1.992]
[1747719125932,2.5665,2570.6,2570.0,3.2078]
[1747719126134,0.77799,2570.1,2570.0,0.00583658]
[1747719126534,8.34449,2570.1,2570.0,0.00583658]
[1747719129943,3.34449,2570.1,2570.0,0.00583658]
[1747719130642,11.40649,2570.1,2570.0,0.00583658]
[1747719133141,3.34449,2570.1,2570.0,0.00583658]
[1747719133347,11.40649,2570.1,2570.0,0.00583658]
[1747719139257,0.77817,2569.5,2569.4,1.9653]
[1747719139455,0.77816,2569.6,2569.4,2.74349]
[1747719140258,0.77816,2569.6,2569.4,5.48349]
[1747719140460,0.77816,2569.6,2569.4,4.7053]
[1747719140666,3.2078,2569.8,2569.4,4.7053]
[1747719141061,3.98588,2569.8,2569.6,0.77812]
[1747719141254,3.98588,2569.8,2569.7,2.0129]
[1747719141864,3.98588,2569.8,2569.6,0.77812]
[1747719142058,3.98588,2569.8,2569.6,0.08486477]
[1747719142059,2.08131,2569.7,2569.6,0.08486477]
[1747719142361,2.77061,2569.7,2569.6,0.08486477]
[1747719142963,0.77814,2569.6,2569.5,2.74]
[1747719143164,2.11374,2569.6,2569.5,4.0485]
[1747719144959,2.0022,2569.6,2569.3,3.2078]
[1747719145160,0.77818,2569.5,2569.3,5.46012]
[1747719145375,3.2078,2569.8,2569.3,7.8897]
[1747719145565,0.77813,2569.7,2569.4,0.77818]
[1747719145754,0.77814,2569.6,2569.5,1.3378]
[1747719145956,0.7782,2569.4,2569.3,3.3734]
[1747719146158,3.23111,2569.7,2568.9,2.004]
[1747719146159,0.77832,2569.0,2568.9,2.004]
[1747719146360,0.77832,2569.0,2568.9,1.9712]
[1747719147363,0.7783,2569.1,2568.9,4.7112]
[1747719147565,0.77832,2569.0,2568.9,4.7112]
[1747719148561,12.65343658,2569.2,2568.3,5.8302]
[1747719148859,0.77844,2568.6,2568.3,5.8302]
[1747719149064,3.2078,2569.0,2568.3,5.8302]
[1747719149265,0.77837,2568.9,2568.5,3.98625]
[1747719149563,1.29163658,2569.2,2568.6,1.3168]
[1747719149963,1.29163658,2569.2,2568.7,0.6346]
[1747719149964,0.77839,2568.8,2568.7,0.6346]
[1747719150667,0.77841,2568.7,2568.6,2.74]
[1747719150866,5.33611,2568.7,2568.6,2.74]
[1747719151265,0.77849,2568.5,2568.3,2.6014]
[1747719151466,0.77845,2568.6,2568.3,2.6014]
[1747719151764,0.77849,2568.5,2568.3,2.6014]
[1747719152162,0.77849,2568.5,2568.3,5.3414]
[1747719152561,0.7785,2568.4,2568.3,5.3414]
[1747719152861,2.0196,2568.4,2568.3,5.3414]
[1747719153060,5.2274,2568.4,2568.3,3.3746]
[1747719153463,5.2274,2568.4,2568.3,2.74]
[1747719153760,13.3814,2568.4,2568.3,2.74]
[1747719154167,17.6029,2568.4,2567.5,3.2078]
[1747719154470,0.77871,2567.8,2567.6,1.9821]
[1747719154663,0.77871,2567.8,2567.7,1.2992]
[1747719157169,0.77871,2567.7,2567.6,0.6829]
[1747719157466,2.03971,2567.7,2567.6,0.6829]
[1747719157661,6.261,2567.7,2567.2,3.2078]
[1747719157867,0.77885,2567.3,2566.9,3.98673]
[1747719158164,0.77886,2567.3,2567.0,1.9729]
[1747719158368,0.77888,2567.2,2567.0,2.6442]
[1747719158566,0.77887,2567.2,2567.0,2.6442]
[1747719158761,0.77882,2567.4,2567.0,3.4231]
[1747719159170,0.77882,2567.4,2567.1,0.77889]
[1747719159359,0.77883,2567.4,2567.2,1.3418]
[1747719159561,0.77883,2567.3,2567.2,1.3418]
[1747719160165,2.02653,2567.3,2567.2,1.3418]
[1747719160365,0.77886,2567.2,2567.1,2.74]
[1747719160563,2.02656,2567.2,2567.1,2.74]
[1747719161270,0.77889,2567.1,2567.0,3.4113]
[1747719161569,0.6655,2567.6,2567.0,6.6191]
[1747719161772,0.77878,2567.5,2567.2,0.77885]
[1747719161969,0.77878,2567.5,2567.3,1.3513]
[1747719162165,0.77878,2567.5,2567.3,2.74]
[1747719162473,2.7821,2567.4,2567.3,2.74]
[1747719162666,0.77879,2567.5,2567.3,2.74]
[1747719162972,0.77879,2567.5,2567.4,1.3513]
[1747719163171,0.77879,2567.5,2567.4,4.0913]
[1747719163363,2.14559,2567.5,2567.4,4.0913]
[1747719163565,2.14559,2567.5,2567.4,2.74]
[1747719166572,2.14559,2567.5,2566.8,0.77897]
[1747719166573,1.3668,2567.5,2566.4,3.2078]
[1747719166771,11.3668,2567.4,2566.9,1.8849]
[1747719167073,0.7789,2567.1,2566.9,1.8849]
[1747719167272,0.7789,2567.1,2566.9,4.6249]
[1747719167472,0.7789,2567.1,2566.9,5.40385]
[1747719167776,0.7789,2567.1,2566.9,4.6249]
[1747719168273,0.77889,2567.2,2566.9,5.40385]
[1747719168473,0.77886,2567.2,2566.9,5.40385]
[1747719168775,1.3738,2567.3,2566.9,4.6249]
[1747719168976,0.77892,2567.0,2566.9,4.6249]
[1747719169275,1.9974,2567.3,2566.9,4.6249]
[1747719169474,0.77892,2567.0,2566.9,4.6249]
[1747719170071,0.77892,2567.0,2566.9,3.3775]
[1747719170377,1.9974,2567.3,2566.9,4.15646]
[1747719170576,0.77888,2567.2,2566.9,5.49846]
[1747719171070,0.7789,2567.1,2566.9,5.49846]
[1747719171276,0.7789,2567.1,2566.9,4.7195]
[1747719171478,0.77892,2567.0,2566.9,4.7195]
[1747719171776,0.77891,2567.1,2566.9,5.49845]
[1747719171977,1.369,2567.2,2566.9,5.49845]
[1747719172178,0.77892,2567.1,2566.9,4.7195]
[1747719172879,1.369,2567.2,2566.9,5.49844]
[1747719173079,0.77891,2567.1,2566.9,4.7195]
[1747719173680,0.77892,2567.0,2566.9,4.7195]
[1747719174581,2.14788,2567.2,2566.9,5.49843]
[1747719174783,0.7789,2567.1,2566.9,5.49843]
[1747719175482,3.2078,2567.4,2566.9,4.7195]
[1747719175680,0.77887,2567.2,2567.0,0.77891]
[1747719175875,0.77886,2567.2,2567.1,1.2567]
[1747719176076,2.02845,2567.3,2567.1,2.03559]
[1747719176280,0.77886,2567.2,2567.1,1.2567]
[1747719176780,1.2496,2567.3,2567.1,1.2567]
[1747719176977,2.02845,2567.3,2567.1,1.2567]
[1747719177182,2.02845,2567.3,2567.1,2.03559]
[1747719177479,2.02845,2567.3,2567.1,1.2567]
[1747719177681,1.2496,2567.3,2567.1,1.2567]
[1747719177984,0.77886,2567.2,2567.1,1.2567]
[1747719178280,2.02845,2567.3,2567.1,1.2567]
[1747719178475,0.77886,2567.2,2567.1,1.2567]
[1747719178784,2.02845,2567.3,2567.1,1.2567]
[1747719179285,0.77886,2567.2,2567.1,1.2567]
[1747719179583,3.2078,2567.4,2567.3,0.77883]
[1747719179785,0.6655,2567.6,2567.1,1.2567]
[1747719179985,0.77882,2567.4,2567.2,0.77885]
[1747719180283,0.77882,2567.4,2567.3,1.3364]
[1747719180484,2.06639,2567.5,2567.4,0.08486477]
[1747719180979,2.69299,2567.5,2567.4,0.08486477]
[1747719181177,2.69299,2567.5,2567.4,2.82486477]
[1747719184381,0.77892,2567.0,2566.9,0.6465]
[1747719185188,0.77892,2567.0,2566.9,3.3865]
[1747719185389,2.07992,2567.0,2566.9,3.3865]
[1747719187486,10.25192,2567.0,2566.9,2.65897317]
[1747719187986,10.25192,2567.0,2566.9,2.78071504]
[1747719188188,10.25192,2567.0,2566.9,0.12174187]
[1747719188883,2.07992,2567.0,2566.9,0.12174187]
[1747719189088,1.301,2567.0,2566.5,2.75446]
[1747719189386,0.77903,2566.7,2566.5,1.9754]
[1747719189785,0.77905,2566.6,2566.5,1.9754]
[1747719190089,0.77905,2566.6,2566.5,4.7154]
[1747719190486,0.77905,2566.6,2566.5,3.3809]
[1747719190786,3.2078,2566.2,2564.3,3.2078]
[1747719190980,45.6855,2566.6,2564.9,1.3057]
[1747719190981,3.2078,2565.3,2564.9,1.3057]
[1747719191186,3.2078,2565.3,2564.9,7.2535]
[1747719191382,3.2078,2565.3,2564.9,4.0457]
[1747719191586,3.2078,2565.3,2565.1,0.77948]
[1747719191790,3.2078,2565.3,2565.2,1.3162]
[1747719192190,0.00583658,2565.5,2565.3,0.77942]
[1747719192397,0.00583658,2565.5,2565.4,1.3162]
[1747719193192,0.00583658,2565.5,2565.4,4.0562]
[1747719193991,0.00583658,2565.5,2565.4,4.83561]
[1747719194300,0.00583658,2565.5,2565.4,4.0562]
[1747719195193,0.00583658,2565.5,2565.4,2.74]
[1747719195694,0.00583658,2565.5,2565.4,8.51941]
[1747719195891,0.00583658,2565.5,2565.4,9.16871]
[1747719196086,0.00583658,2565.5,2565.4,10.50521]
[1747719197094,0.00583658,2565.5,2565.4,5.50521]
[1747719197294,0.00583658,2565.5,2565.4,10.50521]
[1747719199698,0.00583658,2565.5,2565.4,10.59007477]
[1747719200201,0.00583658,2565.5,2565.4,9.81066477]
[1747719200494,0.00583658,2565.5,2565.4,18.76507477]
[1747719201095,3.2078,2565.9,2565.4,17.98566477]
[1747719201400,3.2078,2566.2,2565.9,0.77924]
[1747719201597,3.2078,2566.2,2566.0,2.68562]
[1747719202197,3.2078,2566.2,2566.0,5.42562]
[1747719202699,3.2078,2566.2,2566.1,0.7792]
[1747719203400,3.2078,2566.2,2566.0,5.42562]
[1747719203602,3.2078,2566.2,2566.0,4.6464]
[1747719204404,3.2078,2566.2,2566.1,0.6517]
[1747719205295,5.33147,2566.2,2566.1,0.6517]
[1747719206002,0.7792,2566.1,2566.0,4.0074]
[1747719207002,2.0255,2566.1,2566.0,4.0074]
[1747719207303,1.2463,2566.1,2566.0,4.0074]
[1747719207604,2.0255,2566.1,2566.0,4.0074]
[1747719207800,2.0255,2566.1,2566.0,2.74]
[1747719210302,0.7793,2565.8,2565.4,0.86425477]
[1747719210498,3.98718,2565.5,2565.4,4.77e-06]
[1747719210703,3.2078,2565.5,2565.4,4.77e-06]
[1747719211096,3.2078,2565.5,2565.4,2.74000477]
[1747719211300,4.4894,2565.5,2565.4,2.74000477]
[1747719212604,5.26878,2565.5,2565.4,2.74000477]
[1747719212810,4.4894,2565.5,2565.4,2.74000477]
[1747719213109,5.26878,2565.5,2565.4,2.74000477]
[1747719214715,0.664,2565.7,2565.4,2.74000477]
[1747719215006,3.2078,2565.8,2565.5,1.2951]
[1747719215206,3.2078,2565.8,2565.5,1.9499]
[1747719215410,5.237,2565.8,2565.5,1.9499]
[1747719215810,4.4577,2565.8,2565.5,2.72925]
[1747719216110,4.4577,2565.8,2565.6,0.6368]
[1747719216811,4.4577,2565.8,2565.6,1.41614]
[1747719217016,0.6335,2566.0,2565.7,9.6837]
[1747719217311,3.2078,2566.1,2565.8,2.07498]
[1747719217703,5.2592,2566.1,2565.8,1.2957]
[1747719218105,4.48,2566.1,2565.6,5.9478]
[1747719218305,0.77926,2565.9,2565.8,2.74]
[1747719218609,4.48,2566.1,2565.8,2.74]
[1747719219017,0.77926,2565.9,2565.8,2.74]
[1747719219505,0.77924,2566.0,2565.8,2.74]
[1747719219707,2.09424,2566.0,2565.8,2.74]
[1747719220114,0.77926,2565.9,2565.8,2.74]
[1747719220310,2.09426,2565.9,2565.8,2.74]
[1747719222014,2.09426,2565.9,2565.8,4.0809]
[1747719222306,0.77924,2566.0,2565.8,4.0809]
[1747719222523,0.6335,2566.3,2565.8,4.0809]
[1747719222720,0.6335,2566.3,2565.9,3.8626]
[1747719222919,1.9374,2566.3,2566.0,1.9365]
[1747719223125,0.77918,2566.2,2566.1,8.388]
[1747719223518,2.08308,2566.2,2566.1,8.388]
[1747719225525,1.3039,2566.2,2566.1,8.388]
[1747719225714,0.6335,2566.3,2566.1,8.388]
[1747719226023,1.41264,2566.3,2566.2,1.2424]
[1747719226214,3.21363658,2566.4,2566.2,1.2424]
[1747719226419,3.99275658,2566.4,2566.2,1.2424]
[1747719226618,3.99275658,2566.4,2566.3,0.6387]
[1747719227120,3.99275658,2566.4,2566.3,3.3787]
[1747719227326,0.00583658,2566.4,2566.3,4.15784]
[1747719227627,0.00583658,2566.4,2566.3,3.3787]
[1747719227829,0.00583658,2566.4,2566.3,4.15784]
[1747719230021,3.2078,2566.7,2566.6,0.77904]
[1747719230223,3.2078,2566.7,2566.6,9.16604]
[1747719230417,3.2078,2566.7,2566.6,8.387]
[1747719230827,3.2078,2566.7,2566.6,9.6426]
[1747719231130,3.2078,2566.7,2566.6,10.42164]
[1747719231729,0.00583658,2566.9,2566.8,0.77898]
[1747719232225,0.00583658,2566.9,2566.8,6.72678]
[1747719232429,0.00583658,2566.9,2566.8,8.10018]
[1747719233323,3.2078,2567.4,2567.3,0.77883]
[1747719233930,3.2078,2567.4,2567.3,3.46663]
[1747719234229,3.2078,2567.4,2567.3,6.20663]
[1747719236632,0.00583658,2567.6,2567.5,0.77877]
[1747719237023,0.97103415,2568.0,2567.9,0.77865]
[1747719237223,0.97103415,2568.0,2567.9,3.51865]
[1747719237624,0.97103415,2568.0,2567.9,5.49075]
[1747719237927,0.6293,2568.3,2567.9,7.9199]
[1747719238132,0.00583658,2568.4,2567.9,10.957]
[1747719238427,0.00583658,2568.4,2568.2,0.77854]
[1747719238628,0.00583658,2568.4,2568.3,8.37]
[1747719238828,1.34153658,2568.4,2568.3,8.37]
[1747719239130,0.00583658,2568.4,2568.3,11.88853]
[1747719239527,0.00583658,2568.4,2568.3,13.23023]
[1747719240632,0.00583658,2568.4,2568.3,12.4517]
[1747719240926,0.00583658,2568.4,2568.3,11.11]
[1747719241124,0.77865,2567.9,2567.8,0.00583658]
[1747719242325,2.11235,2567.9,2567.8,0.00583658]
[1747719242724,6.3337,2567.9,2567.1,8.369]
[1747719242927,3.2078,2567.5,2567.2,0.77886]
[1747719243121,1.3337,2567.4,2567.2,0.77885]
[1747719244628,1.3337,2567.4,2567.1,11.88787]
[1747719244830,0.77883,2567.3,2567.1,2.74]
[1747719245036,2.03436,2567.2,2567.1,2.74]
[1747719245227,2.03436,2567.2,2567.0,2.74583658]
[1747719245531,1.2555,2567.2,2567.0,2.74583658]
[1747719246330,1.46679,2567.1,2567.0,2.74583658]
[1747719247031,7.77379,2567.1,2567.0,2.74583658]
[1747719247331,7.77379,2567.1,2567.0,0.00583658]
[1747719247833,0.77914,2566.3,2566.2,3.2078]
[1747719248133,3.2078,2566.5,2566.0,1.90385624]
[1747719248436,0.77915,2566.3,2566.0,5.89087624]
[1747719248636,1.9949,2566.4,2566.0,5.11165624]
[1747719248829,1.9949,2566.4,2566.1,1.2781]
[1747719249336,1.9949,2566.4,2566.3,0.77914]
[1747719249522,1.9949,2566.4,2566.1,1.2781]
[1747719249723,0.00583658,2566.5,2566.4,0.77911]
[1747719250130,0.00583658,2566.5,2566.4,3.51911]
[1747719251237,0.00583658,2566.5,2566.4,2.74]
[1747719251433,1.37313658,2566.5,2566.4,2.74]
[1747719251933,1.37313658,2566.5,2566.4,3.51911]
[1747719252733,0.00583658,2566.5,2566.4,3.51911]
[1747719252936,0.00583658,2566.5,2566.4,6.72691]
[1747719254438,0.00583658,2566.5,2566.4,8.08031]
[1747719255135,0.00583658,2566.5,2566.4,7.3012]
[1747719255335,0.00583658,2566.5,2566.4,8.08031]
[1747719255536,1.31603658,2566.5,2566.4,8.08031]
[1747719256945,0.00583658,2566.5,2566.4,16.45131]
[1747719259437,0.00583658,2566.5,2566.4,16.53617477]
[1747719261641,0.00583658,2566.5,2566.4,8.16517477]
[1747719261845,0.00583658,2566.5,2566.4,16.53617477]
[1747719262840,0.00583658,2566.5,2566.4,8.16517477]
[1747719263142,0.00583658,2566.5,2566.4,16.53617477]
[1747719263341,0.00583658,2566.5,2566.4,15.75706477]
[1747719263539,1.92423658,2566.5,2566.4,6.03266477]
[1747719263739,2.70331658,2566.5,2566.4,6.03266477]
[1747719263939,2.70331658,2566.5,2566.4,2.82486477]
[1747719266048,1.92423658,2566.5,2566.4,3.60397477]
[1747719266343,1.92423658,2566.5,2566.4,2.82486477]
[1747719266847,1.92423658,2566.5,2566.4,3.60397477]
[1747719267043,0.00583658,2566.5,2566.4,3.60397477]
[1747719269043,0.00583658,2566.5,2566.4,6.81177477]
[1747719269348,0.00583658,2566.5,2566.4,15.05377477]
[1747719270644,2.0028,2567.0,2566.9,0.77895]
[1747719270948,1.3391,2567.2,2567.1,0.77889]
[1747719271143,2.0171,2567.2,2567.1,0.77889]
[1747719271343,0.6423,2567.8,2567.6,0.77871]
[1747719271548,1.3345,2567.7,2567.2,1.9943]
[1747719271741,2.11906658,2567.7,2567.4,0.77879]
[1747719271941,0.77875,2567.6,2567.4,0.77879]
[1747719272141,1.3345,2567.5,2567.4,2.74]
[1747719272645,1.3345,2567.5,2567.4,3.5188]
[1747719273445,1.3345,2567.5,2567.4,2.74]
[1747719273646,2.11327,2567.5,2567.4,2.74]
[1747719273849,7.11327,2567.5,2567.4,0.75862026]
[1747719274246,0.77883,2567.3,2567.2,0.00583658]
[1747719274547,3.98663,2567.3,2567.2,0.00583658]
[1747719274853,8.98663,2567.3,2567.2,0.00583658]
[1747719275952,10.93073,2567.3,2567.2,0.00583658]
[1747719277051,11.61113,2567.3,2567.2,0.00583658]
[1747719277951,6.61113,2567.3,2567.2,0.00583658]
[1747719279656,11.61113,2567.3,2567.2,0.00583658]
[1747719283354,6.61113,2567.3,2567.2,0.00583658]
[1747719288657,6.61113,2567.3,2567.2,6.58e-06]
[1747719288864,0.77886,2567.2,2567.1,1.35e-06]
[1747719289062,2.15496,2567.2,2567.1,1.35e-06]
[1747719289264,7.15496,2567.2,2567.1,1.35e-06]
[1747719289658,2.15496,2567.2,2567.1,1.35e-06]
[1747719289960,0.77892,2567.0,2566.9,0.00583658]
[1747719290155,3.98672,2567.0,2566.9,0.00583658]
[1747719291263,3.98672,2567.0,2566.9,2.74583658]
[1747719291463,8.98672,2567.0,2566.9,1.88925658]
[1747719291763,3.98672,2567.0,2566.9,1.88925658]
[1747719291963,12.22772,2567.0,2566.9,1.88925658]
[1747719292266,0.779,2566.8,2566.6,2.74]
[1747719292465,0.779,2566.8,2566.7,2.6799]
[1747719294160,2.1541,2566.8,2566.7,2.6799]
[1747719297171,0.77902,2566.7,2566.6,2.74]
[1747719297468,2.04202,2566.7,2566.6,2.74]
[1747719298266,0.77905,2566.6,2566.5,2.74]
[1747719300366,2.05405,2566.6,2566.5,2.74]
[1747719301265,0.77914,2566.3,2566.2,2.665]
[1747719301967,0.77912,2566.4,2566.2,3.44415]
[1747719302168,0.77912,2566.4,2566.3,1.2887]
[1747719302870,0.77908,2566.5,2566.3,2.06782]
[1747719303071,3.2078,2566.7,2566.3,1.2887]
[1747719303271,3.2078,2566.7,2566.3,4.0287]
[1747719303570,3.2078,2566.7,2566.4,0.77911]
[1747719303771,0.77905,2566.6,2566.5,1.2887]
[1747719304271,0.77905,2566.6,2566.5,4.0287]
[1747719304770,3.2078,2566.7,2566.6,0.77905]
[1747719305075,3.98682,2566.7,2566.5,4.80776]
[1747719305275,3.98682,2566.7,2566.6,0.6272]
[1747719306071,3.2078,2566.7,2566.6,0.6272]
[1747719306262,3.98682,2566.7,2566.6,0.6272]
[1747719306467,3.2078,2566.7,2566.6,1.40625]
[1747719306669,3.2078,2566.7,2566.6,0.6272]
[1747719306877,0.77902,2566.7,2566.6,0.6272]
[1747719307070,0.77902,2566.7,2566.6,1.40625]
[1747719307272,4.5215,2567.0,2566.6,1.40625]
[1747719307471,4.5215,2567.0,2566.7,1.9468]
[1747719307677,0.77895,2566.9,2566.8,1.2996]
[1747719308273,0.77895,2566.9,2566.8,4.0396]
[1747719308786,2.82245,2566.9,2566.8,2.74]
[1747719309887,2.82245,2566.9,2566.8,1.2853]
[1747719310388,2.14345,2566.9,2566.8,1.2853]
[1747719310783,0.77895,2566.9,2566.8,1.2853]
[1747719312085,2.03545,2566.9,2566.8,1.2853]
[1747719320296,2.03545,2566.9,2566.8,1.37016477]
[1747719323193,3.2078,2567.0,2566.8,1.37016477]
[1747719323394,3.98675,2567.0,2566.9,2.0063]
[1747719323696,3.98675,2567.0,2566.9,2.6551]
[1747719324297,3.98675,2567.0,2566.9,5.3951]
[1747719325996,3.2078,2567.3,2567.0,0.77891]
[1747719326186,0.77888,2567.2,2567.1,1.2815]
[1747719328800,3.98665,2567.3,2567.1,1.2815]
[1747719328992,3.98665,2567.3,2567.1,2.06037]
[1747719329193,3.98663,2567.3,2567.2,1.2932]
[1747719329497,3.2078,2567.3,2567.2,1.2932]
[1747719330197,3.2078,2567.3,2567.2,2.07206]
[1747719330797,0.7788,2567.4,2567.2,2.07206]
[1747719331007,0.7788,2567.4,2567.3,1.9409]
[1747719331298,0.7788,2567.4,2567.3,4.6809]
[1747719331498,2.12079,2567.5,2567.3,5.45973]
[1747719331699,2.12079,2567.5,2567.4,0.6668]
[1747719332097,2.12079,2567.5,2567.4,2.0181]
[1747719332297,2.12079,2567.5,2567.4,4.7581]
[1747719336499,2.12079,2567.5,2567.4,2.74]
[1747719342217,7.12079,2567.5,2567.4,1.41951]
[1747719342920,47.92079,2567.5,2567.4,1.41951]
[1747719343218,0.7788,2567.4,2567.3,0.08486477]
[1747719343408,2.089,2567.4,2567.3,0.08486477]
[1747719343612,7.089,2567.4,2567.3,0.08486477]
[1747719344311,7.089,2567.4,2567.3,2.82486477]
[1747719344814,7.089,2567.4,2567.3,1.99432477]
[1747719345017,7.089,2567.4,2567.3,1.10210477]
[1747719345215,0.77905,2566.6,2566.5,8.6097]
[1747719347319,0.77905,2566.6,2566.5,5.4019]
[1747719349721,0.77905,2566.6,2566.5,5.48676477]
[1747719354522,13.90305,2566.6,2566.5,0.24105477]